Cogmind - Beta 11 --- EXPLORER MODE // 2022.04.15 @ 23:18:13 Player: Infomantis Result: Self-destructed Performance ------------- Evolutions (1) 500 Regions Visited (3) 600 Robots Destroyed (12) 60 Value Destroyed (261) 261 Prototype IDs (0) 0 Alien Tech Used (0) 0 Bonus (0) 0 TOTAL SCORE: 1421 Bonus ------- None Cogmind --------- Core Integrity 400/400 Matter 300/300 Energy 250/250 System Corruption 0% Temperature Cool (0) Movement Walking (120) Location -9/Materials Parts ------- > --- POWER (1) -------- Ion Engine > --- PROPULSION (4) --- Light Treads Light Treads Aluminum Leg Improved Aluminum Leg > --- UTILITY (3) ------ Medium Storage Unit Targeting Computer Targeting Computer > --- WEAPON (2) ------- Medium Laser Light Assault Rifle > --- INVENTORY (10) --- Ion Engine Aluminum Leg Aluminum Leg Machine Analyzer Machine Analyzer Improved Terrain Scanner Light Armor Plating Light Armor Plating Small Laser Datajack Peak State ------------ > --- POWER ------------ Ion Engine > --- PROPULSION ------- Light Treads Light Treads Aluminum Leg Improved Aluminum Leg > --- UTILITY ---------- Medium Storage Unit Targeting Computer Targeting Computer > --- WEAPON ----------- Medium Laser Light Assault Rifle > --- INVENTORY -------- Ion Engine Aluminum Leg Aluminum Leg Machine Analyzer Machine Analyzer Improved Terrain Scanner Light Armor Plating Light Armor Plating Small Laser Datajack [Rating: 12] Favorites ----------- Power Ion Engine Engine Ion Engine Propulsion Aluminum Leg Treads Light Treads Leg Aluminum Leg Utility Targeting Computer Storage Medium Storage Unit Processor Targeting Computer Weapon Medium Laser Energy Gun Medium Laser Ballistic Gun Light Assault Rifle Build | -11 -10 -10 -9 ------- Run | Scr Mat Min Mat Slots Evolved 3 | . 1 . 2 Power . | . . . . Propulsion 2 | . . . 2 Utility 1 | . 1 . . Weapon . | . . . . Parts Attached 13 | 8 1 1 3 Power 1 | 1 . . . Engine 1 | 1 . . . Core . | . . . . Reactor . | . . . . Propulsion 6 | 2 . 1 3 Treads 2 | . . . 2 Leg 4 | 2 . 1 1 Wheel . | . . . . Hover . | . . . . Flight . | . . . . Utility 3 | 2 1 . . Device . | . . . . Storage 1 | 1 . . . Processor 2 | 1 1 . . Hackware . | . . . . Protection . | . . . . Artifact . | . . . . Weapon 3 | 3 . . . Energy Gun 2 | 2 . . . Energy Cannon . | . . . . Ballistic Gun 1 | 1 . . . Ballistic Cannon . | . . . . Launcher . | . . . . Special Weapon . | . . . . Impact Weapon . | . . . . Slashing Weapon . | . . . . Piercing Weapon . | . . . . Special Melee Weapon . | . . . . Unidentified Prototypes . | . . . . Parts Lost . | . . . . Power . | . . . . Propulsion . | . . . . Utility . | . . . . Weapon . | . . . . Highest Loss Streak . | . . . . To Critical Strikes . | . . . . Average Slot Usage (%) 99 | . 100 100 99 Engine 11 | . 12 12 10 Treads 4 | . . . 19 Leg 23 | . 25 25 20 Storage 11 | . 12 12 10 Processor 23 | . 25 25 20 Energy Gun 11 | . 12 12 10 Ballistic Gun 11 | . 12 12 10 Naked Turns . | . . . . Heaviest Build 18 | 18 18 18 18 Greatest Support 23 | 20 20 20 23 Greatest Overweight (x) 1 | 1 . . . Average Overweight (x) . | . . . . Largest Inventory Capacity 10 | 10 10 10 10 Average Capacity 9 | 9 10 10 10 Most Carried 10 | 8 10 10 10 Average Carried 8 | 6 8 10 9 Final Capacity 10 | 10 10 10 10 Final Carried 10 | 8 10 10 10 Class Distribution -------------------- 100% | Hacker-Mutant Dominant Class ---------------- Hacker-Mutant | -10/Materials Hacker-Mutant | -10/Mines Hacker-Mutant | -9/Materials Resources | -11 -10 -10 -9 ----------- Run | Scr Mat Min Mat Matter Collected 360 | 293 16 20 31 Remotely . | . . . . Salvage Created 451 | 154 99 140 58 Parts 22 | 9 5 4 4 Haulers Intercepted . | . . . . Recyclers Shooed . | . . . . Parts Field Recycled . | . . . . Retrieved Matter . | . . . . Parts Self-Destructed . | . . . . Prevented . | . . . . Kills | -11 -10 -10 -9 ------- Run | Scr Mat Min Mat Combat Hostiles Destroyed 7 | . 2 4 1 Guns 7 | . 2 4 1 Classes Destroyed 5 | 2 1 1 1 Tunneler 4 | 4 . . . Recycler 1 | 1 . . . Swarmer 2 | . . 2 . Grunt 4 | . 2 2 . Sentry 1 | . . . 1 Best Kill Streak 4 | 4 2 2 1 Combat Bots Only 2 | . 2 2 1 Max Kills in Single Turn 1 | 1 1 1 1 Gunslinging . | . . . . Exploded . | . . . . Melee . | . . . . Uniques/NPCs Destroyed . | . . . . Combat | -11 -10 -10 -9 -------- Run | Scr Mat Min Mat Damage Taken 150 | . 53 89 8 Core 44 | . 20 24 . Absorbed by Shields . | . . . . Core Remaining (%) 91 | 100 . 82 . Volleys Fired 30 | 13 6 10 1 Largest 2 | 2 2 2 2 Hottest 70 | 70 70 70 70 Shots Fired 60 | 26 12 20 2 Gun 60 | 26 12 20 2 Cannon . | . . . . Launcher . | . . . . Special . | . . . . Kinetic 30 | 13 6 10 1 Thermal 30 | 13 6 10 1 Explosive . | . . . . Electromagnetic . | . . . . Robot Hit Streak 17 | 9 13 17 16 Robot Miss Streak 1 | 1 . 1 . Penetration Max . | . . . . Secondary Targets 1 | . . 1 . Max Gunslinging Chain 1 | . . 1 . Shots Hit Robots 50 | 18 12 18 2 Core Hits 22 | 7 5 8 2 Critical Kills . | . . . . Critical Parts Destroyed 2 | 1 . 1 . Critical Strikes 5 | 2 1 2 . Burn 3 | 1 1 1 . Destroy 2 | 1 . 1 . Melee Attacks . | . . . . Impact . | . . . . Slashing . | . . . . Piercing . | . . . . Sneak Attacks . | . . . . Combat Hostiles . | . . . . Follow-up Attacks . | . . . . Damage Inflicted 507 | 177 122 186 22 Guns 507 | 177 122 186 22 Cannons . | . . . . Explosions . | . . . . Melee . | . . . . Ramming . | . . . . Kinetic 196 | 64 48 74 10 Thermal 311 | 113 74 112 12 Explosive . | . . . . Electromagnetic . | . . . . Impact . | . . . . Slashing . | . . . . Piercing . | . . . . Highest Corruption . | . . . . Average Corruption . | . . . . Corruption Purged . | . . . . Corruption Blocked . | . . . . Overload Shots . | . . . . Overflow Damage . | . . . . Projectiles . | . . . . Explosions . | . . . . Melee . | . . . . Knockbacks . | . . . . Impact . | . . . . Kinetic . | . . . . Secondary . | . . . . Self-Inflicted Damage . | . . . . Shots . | . . . . Rammed . | . . . . Targets Rammed . | . . . . Kicked . | . . . . Crushed . | . . . . Highest Temperature 183 | 90 151 183 24 Average Temperature 62 | 42 73 83 13 Received Heat Transfer 129 | . 51 78 . Siege Activations . | . . . . Robots Corrupted . | . . . . Combat Hostiles . | . . . . Parts Fried . | . . . . Impact Corruptions . | . . . . Robots Melted . | . . . . Combat Hostiles . | . . . . Parts Melted 1 | . 1 . . Heat Transferred 1147 | 407 296 407 37 Parts Sabotaged . | . . . . Parts Stolen . | . . . . Parts Stripped . | . . . . Power Chain Reactions . | . . . . Missiles Intercepted . | . . . . Alert | -11 -10 -10 -9 ------- Run | Scr Mat Min Mat Peak Influence 148 | 25 69 148 88 Initial 40 | . 12 18 40 Average 57 | 9 44 82 64 Maximum Alert Level . | . . . . Low Security (%) 100 | 100 100 100 100 Level 1 . | . . . . Level 2 . | . . . . Level 3 . | . . . . Level 4 . | . . . . Level 5 . | . . . . High Security . | . . . . Max Security . | . . . . Squads Dispatched . | . . . . Investigation . | . . . . Extermination . | . . . . Reinforcement . | . . . . Assault . | . . . . Garrison . | . . . . Intercept . | . . . . Searches Triggered . | . . . . Construction Impeded . | . . . . Haulers Reinforced . | . . . . Active Scanning Responses . | . . . . Cargo Convoy Interrupts . | . . . . Stealth | -11 -10 -10 -9 --------- Run | Scr Mat Min Mat Distress Signals . | . . . . Communications Jammed . | . . . . Distress Signals . | . . . . Times Spotted 10 | . 5 4 1 Peak Tracking Total 3 | . 3 2 1 Tactical Retreats . | . . . . Traps | -11 -10 -10 -9 ------- Run | Scr Mat Min Mat Traps Triggered . | . . . . Indirectly . | . . . . Trap Hack Attempts . | . . . . Triggered . | . . . . Disarmed . | . . . . Reprogrammed . | . . . . Reused . | . . . . Traps Extracted . | . . . . Installed . | . . . . Triggered . | . . . . Machines | -11 -10 -10 -9 ---------- Run | Scr Mat Min Mat Machines Disabled . | . . . . Max in Single Turn . | . . . . Machines Sabotaged . | . . . . Garrisons Compromised . | . . . . Overloaded Fab Kills . | . . . . Hacking | -11 -10 -10 -9 --------- Run | Scr Mat Min Mat Machines Accessed 4 | . 2 . 2 Terminals 3 | . 2 . 1 Fabricators . | . . . . Repair Stations . | . . . . Recycling Units . | . . . . Scanalyzers 1 | . . . 1 Garrison Access . | . . . . Total Hacks 9 | . 4 . 5 Successful 7 | . 2 . 5 Failed 2 | . 2 . . Catastrophic . | . . . . Database Lockouts . | . . . . Manual 2 | . 2 . . Terminals 5 | . 4 . 1 Fabricators . | . . . . Repair Stations . | . . . . Recycling Units . | . . . . Scanalyzers 4 | . . . 4 Garrison Access . | . . . . Terminal Hacks 3 | . 2 . 1 Branch Access Points 1 | . 1 . . Hauler Manifests 1 | . . . 1 Registered Prototypes 1 | . 1 . . Fabricator Hacks . | . . . . Repair Station Hacks . | . . . . Recycling Unit Hacks . | . . . . Scanalyzer 4 | . . . 4 Insert Component 2 | . . . 2 Analyze 2 | . . . 2 Garrison Access Hacks . | . . . . Unauthorized Hacks . | . . . . Terminals . | . . . . Fabricators . | . . . . Repair Stations . | . . . . Recycling Units . | . . . . Scanalyzers . | . . . . Garrison Access . | . . . . Data Cores Recovered . | . . . . Used . | . . . . Hacking Detections 1 | . 1 . . Full Trace Events . | . . . . Feedback Events . | . . . . Feedback Blocked . | . . . . Robot Schematics Acquired . | . . . . Robots Built . | . . . . Authchips . | . . . . Time . | . . . . Total Robot Build Rating . | . . . . Part Schematics Acquired 2 | . . . 2 Parts Built . | . . . . Authchips . | . . . . Time . | . . . . Total Part Build Rating . | . . . . Parts Repaired . | . . . . Time . | . . . . Parts Recycled . | . . . . Recycled Matter . | . . . . Retrieved Matter . | . . . . Retrieved Components . | . . . . Parts Scanalyzed 2 | . . . 2 Part Schematics Acquired 2 | . . . 2 Parts Damaged . | . . . . Bothacking | -11 -10 -10 -9 ------------ Run | Scr Mat Min Mat Used RIF Installer . | . . . . Robots Hacked . | . . . . Non-combat . | . . . . Combat . | . . . . Robot Hacks Applied . | . . . . Relay Couplers Released . | . . . . Fabnet Peak Effective % . | . . . . Robots Rewired . | . . . . Allies Hacked . | . . . . Hacks Repelled . | . . . . Allies | -11 -10 -10 -9 -------- Run | Scr Mat Min Mat Total Allies . | . . . . Largest Group . | . . . . Highest-Rated Group . | . . . . Highest-Rated Ally . | . . . . Total Orders . | . . . . Ally Attacks . | . . . . Total Damage . | . . . . Kills . | . . . . Allies Corrupted . | . . . . Allies Melted . | . . . . Intel | -11 -10 -10 -9 ------- Run | Scr Mat Min Mat Robot Analysis Total . | . . . . Derelict Logs Recovered . | . . . . Drone Launches . | . . . . Drone Recoveries . | . . . . Exploration | -11 -10 -10 -9 ------------- Run | Scr Mat Min Mat Turns Passed 682 | 151 91 316 124 Spaces Moved 457 | 78 59 224 96 Core 4 | 4 . . . Treads . | . . . . Legs 453 | 74 59 224 96 Wheels . | . . . . Hover . | . . . . Flight . | . . . . Fastest Speed 50 | 50 120 120 120 Average Speed 120 | 121 120 120 120 Slowest Speed 190 | 190 120 120 120 Overloaded Moves . | . . . . Propulsion Burnouts . | . . . . Robots Hopped . | . . . . Cave-ins Triggered . | . . . . Exploration Rate (%) 23 | 4 28 48 12 Regions Visited 3 Branch Regions 1 Pre-discovered Areas 1 | . . 1 . Known Exits Taken 3 | 1 1 1 . Unknown Exits Taken . | . . . . Scrap Searched . | . . . . Spaces Dug . | . . . . Terrain Destroyed . | . . . . Melee . | . . . . Projectile . | . . . . AOE . | . . . . Terrain Rammed . | . . . . Walls Destroyed . | . . . . Machines Disabled . | . . . . Actions | -11 -10 -10 -9 --------- Run | Scr Mat Min Mat Total 532 | 107 68 254 103 Wait 16 | . . 16 . Move 454 | 77 58 223 96 Hop . | . . . . Pick Up 14 | 8 3 1 2 Fast Attach 7 | 7 . . . Attach 4 | 1 1 . 2 Detach 1 | 1 . . . Swap 2 | . . 1 1 Drop 3 | . . 2 1 Fire 30 | 13 6 10 1 Melee . | . . . . Ram . | . . . . Kick . | . . . . Crush . | . . . . Escape Stasis . | . . . . Rewire 1 | . . 1 . Trap . | . . . . Miscellaneous . | . . . . Route ------- -11/Scrapyard -10/Materials -10/Mines -9/Materials History --------- Turn | Location | Event 9 | -11/Scrapyard | Identified exit to Materials 9 | -11/Scrapyard | Discovered exit to Materials (range 15) 152 | -11/Scrapyard | Entered Materials 152 | -10/Materials | Evolved 1 slot: Utility x1 221 | -10/Materials | Identified exit to Mines 243 | -10/Materials | Entered Mines 273 | -10/Mines | Met a Derelict bent on vengeance 306 | -10/Mines | Build established: Hacker-Mutant 321 | -10/Mines | Learned location of Storage (-9) 546 | -10/Mines | Identified exit to Materials 546 | -10/Mines | Discovered exit to Materials (range 10) 559 | -10/Mines | Entered Materials 559 | -9/Materials | Evolved 2 slots: Propulsion x2 683 | -9/Materials | Self-destructed Last Messages --------------- Retrieving manifest data... Found 6 haulers: A-02 Transporter 6x Field Recycling Unit A-02 Transporter 4x Imp. EM Shotgun 2x Cld. Ion Engine A-02 Transporter 3x ECM Suite A-02 Transporter 6x Imp. Flight Unit (2 escorts) A-02 Transporter 4x Tractor Beam 2x Imp. Flight Unit A-02 Transporter 1x Weight Redist. System 2x Signal Interpreter 1x Hvy. EM Pulse Gun 00669_ K-01 Serf cleans the Hadron Collector. Map ----- +----------------------------------------------------+ | ???????????????????????????# ###### #????????? | | ??????????????????????????####/#####?????????????? | | ??????????????????????????# #?????????????? | | ??????????????????????????# #?????????????? | | ??????????????????????????# =#?????????????? | | ??????????????????????????# #?????????????? | | ??????????????????????????# """#?????????????? | | ??????????????????????????# """#?????????????? | | ??????????????????????????# """#?????????????? | | ??????????????????????????# """#?????????????? | | ??????????????????????????# +?????????????? | | ??????????????????????????######+###?????????????? | | ??????????????????????????###### #???????????????? | | ??????????????????????????# # #???????????????? | | ??????????????????????????# "" # #???????????????? | | ??????????????????????????# T" # #######?????????? | | ??????????????????????????# "" + +?????????? | | ??????????????????????????# # ####?????????? | | ????????????????????????######## #????????????? | | ????????????????? #????????????? | | ????????????????????????########+##+#????????????? | | ?????????????????????????????# #????????????? | | ?????????????????????????????# #????????????? | | ?????????????????????????????# == #????????????? | | ????????????????# ############ = #????????????? | | ????????????????+ @ + #????????????? | | ????????????????# ### ] #????????????? | | ????????????????# #?########????????????? | | ????????????????# r #?????????????????????? | | ????????????????#### ##### #?????????????????????? | | ???????????????????#?????# #?????????????????????? | | ?????????????????????????# #?????????????????????? | | ?????????????????????????#+#?????????????????????? | | ?????????????????????????????????????????????????? | | ?????????????????????????????????????????????????? | | ?????????????????????????????????????????????????? | | ?????????????????????????????????????????????????? | | ?????????????????????????????????????????????????? | | ?????????????????????????????????????????????????? | | ?????????????????????????????????????????????????? | | ?????????????????????????????????????????????????? | | ?????????????????????????????????????????????????? | | ?????????????????????????????????????????????????? | | ?????????????????????????????????????????????????? | | ?????????????????????????????????????????????????? | | ?????????????????????????????????????????????????? | | ?????????????????????????????????????????????????? | | ?????????????????????????????????????????????????? | | ?????????????????????????????????????????????????? | | ?????????????????????????????????????????????????? | +----------------------------------------------------+ Best States ------------- Heat Dissipation 28 Energy Generation 10 Energy Capacity 250 Matter Stores 300 Matter Capacity 300 Sight Range 16 Terrain Scan Density 10 Resistance: KI 35 Resistance: TH 35 Resistance: EX 35 Resistance: EM 35 Resistance: I 35 Resistance: S 35 Resistance: P 35 Evasion (%) 55 Targeting Accuracy 10 Recoil Reduction 1 Offensive Hacking 20 Item Schematics ----------------- Machine Analyzer | -9/Materials | Scanalyzed Lgt. Armor Plating | -9/Materials | Scanalyzed Robot Schematics ------------------ None Fabricated ------------ Nothing Alien Tech Used ----------------- None Achievements -------------- None Challenges ------------ None Game ------ Seed MagneticDeliveryCasing Manual? 0 Play Time 00:05:45 Cumulative 153.4 hours Start 2022.04.15 @ 23:13:07 End 2022.04.15 @ 23:18:13 Sessions 1 Manual Loads 0 Difficulty Explorer Special Mode None Game No. 117 Rogue 96 Adventurer 6 Explorer 15 Win Type - Total 10 Types 6/0/1/1/0/0/1/1/0 Lore% 85 Gallery% 84 Achievement% 64 Wizard Run 0 Options --------- ASCII 0 Keyboard 0 Movement Numpad Keybinds 0 Fullscreen 1 Font 12/Fuzzy Map View 83x54 Tactical HUD 1 Map Filters NONE Filters NONE Steam 1 RUN: 534f3d1c-9544-49bf-ab84-c805ce53a58c